bitfinex/quotes_SOLUSD_20240902
["timestamp","ask_amount","ask_price","bid_price","bid_amount"]
[1725238405525,15.85462957,129.08,129.02,7.7501]
[1725238405711,21.93718355,129.07,129.02,7.7501]
[1725238406025,29.68538355,129.07,129.02,7.7501]
[1725238406411,7.7483,129.06,129.02,7.7501]
[1725238406814,7.7493,129.05,129.01,19.3771]
[1725238407019,7.7493,129.05,129.01,27.1283]
[1725238407316,21.93718355,129.07,129.0,7.7518]
[1725238407730,41.30718355,129.07,128.98,27.135]
[1725238407939,7.7502,129.03,128.99,7.7524]
[1725238408607,7.7502,129.03,128.98,19.382]
[1725238408608,7.7508,129.02,128.98,19.382]
[1725238408820,7.75,129.04,128.99,1.55026485]
[1725238409006,7.7505,129.03,128.99,1.55026485]
[1725238409511,7.7496,129.04,129.0,7.7517]
[1725238409912,9.68771016,129.03,128.98,27.1345]
[1725238410221,7.7502,129.03,128.99,1.55016788]
[1725238410422,6.1701,129.08,129.05,7.7489]
[1725238410618,15.7122,129.09,129.03,19.3744]
[1725238410619,7.7466,129.09,129.04,7.7494]
[1725238410923,6.3691,129.11,129.07,7.7475]
[1725238411129,6.3691,129.14,129.1,7.7457]
[1725238411310,8.30528462,129.14,129.1,7.7457]
[1725238411510,1.93618086,129.16,129.1,7.7457]
[1725238411706,7.7431,129.15,129.1,7.7457]
[1725238411921,14.1113,129.17,129.1,0.79020264]
[1725238412111,1.93572919,129.2,129.1,66.7791]
[1725238412309,1.93572919,129.2,129.13,19.3589]
[1725238412517,7.7395,129.21,129.16,7.7422]
[1725238412722,1.93522197,129.2,129.15,7.7428]
[1725238412910,1.93522197,129.2,129.14,7.7434]
[1725238413220,1.9352501,129.23,129.14,7.7434]
[1725238413615,21.9352501,129.23,129.14,7.7434]
[1725238413819,7.7398,129.21,129.15,7.7427]
[1725238414015,1.93541449,129.2,129.15,7.7427]
[1725238414216,1.93541526,129.22,129.15,7.7427]
[1725238414441,7.7404,129.2,129.14,7.7435]
[1725238414634,1.93544371,129.19,129.14,7.7435]
[1725238414927,1.93541338,129.23,129.16,7.7419]
[1725238415121,1.93541338,129.23,129.15,19.356]
[1725238415431,1.93541338,129.23,129.16,1.54802689]
[1725238415609,1.93541338,129.23,129.17,7.7411]
[1725238415827,9.67351338,129.23,129.17,7.7411]
[1725238416625,9.67351338,129.23,129.16,45.0]
[1725238416826,9.67351338,129.23,129.19,7.7404]
[1725238416827,1.93541338,129.23,129.19,7.7404]
[1725238417147,6.1193,129.24,129.2,1.20703794]
[1725238417316,9.67166377,129.25,129.2,1.20703794]
[1725238417640,6.0297,129.28,129.2,1.20703794]
[1725238417641,7.7364,129.26,129.21,7.7391]
[1725238417810,9.67072402,129.26,129.22,1.54745922]
[1725238418012,7.7369,129.25,129.2,7.7399]
[1725238418421,7.7369,129.25,129.21,1.54754785]
[1725238418614,7.7369,129.25,129.2,7.7399]
[1725238419336,1.93443256,129.27,129.21,1.54762177]
[1725238419524,6.0297,129.28,129.21,20.89482177]
[1725238419723,1.93411662,129.3,129.24,19.3432]
[1725238419922,16.6601,129.31,129.24,19.3432]
[1725238419923,9.66854838,129.29,129.24,19.3432]
[1725238420124,16.6601,129.31,129.25,1.54721233]
[1725238420125,9.66801541,129.3,129.25,1.54721233]
[1725238420414,1.93384643,129.29,129.25,1.54721233]
[1725238420746,16.6601,129.31,129.25,0.6200671]
[1725238420747,1.93384643,129.31,129.25,0.6200671]
[1725238421038,1.93384643,129.31,129.25,1.54690836]
[1725238421237,1.93384643,129.31,129.24,19.3432]
[1725238421541,7.96333712,129.32,129.24,19.3432]
[1725238421833,7.7344,129.3,129.24,27.0806]
[1725238422023,1.93394518,129.29,129.24,27.0806]
[1725238422428,9.66864518,129.29,129.24,27.0806]
[1725238422622,9.66864518,129.29,129.21,19.3483]
[1725238422623,1.93394518,129.29,129.21,19.3483]
[1725238422821,7.7365,129.26,129.21,27.0874]
[1725238423022,7.7356,129.28,129.23,7.7378]
[1725238423230,1.93435147,129.27,129.21,19.3483]
[1725238423428,7.7363,129.27,129.21,27.0875]
[1725238423731,1.93437005,129.26,129.21,27.0875]
[1725238423933,9.67067005,129.26,129.21,27.0875]
[1725238424134,1.93437486,129.3,129.21,19.3483]
[1725238424321,1.93401417,129.29,129.21,19.3483]
[1725238424526,1.93390576,129.3,129.21,19.3483]
[1725238424721,1.93390576,129.3,129.25,7.7363]
[1725238425038,9.6676287,129.31,129.26,9.28318296]
[1725238425255,6.0297,129.32,129.28,7.735]
[1725238425421,6.1284,129.35,129.27,19.3383]
[1725238425619,7.7322,129.33,129.28,7.735]
[1725238425938,7.7298,129.37,129.31,7.7327]
[1725238426125,1.93281948,129.36,129.31,7.7327]
[1725238426451,9.66311948,129.36,129.31,7.7327]
[1725238426624,7.7303,129.36,129.31,7.7327]
[1725238427133,9.66411069,129.35,129.3,19.3345]
[1725238427438,1.93281069,129.35,129.27,19.3392]
[1725238427646,7.7328,129.32,129.27,19.3392]
[1725238428623,7.7373,129.25,129.2,7.7393]
[1725238428820,7.7364,129.26,129.21,27.0873]
[1725238430143,7.7357,129.27,129.22,7.7387]
[1725238431134,25.5754,129.31,129.21,19.3482]
[1725238431135,7.7352,129.28,129.23,7.738]
[1725238431335,25.5754,129.31,129.19,15.0243]
[1725238431336,6.2406,129.31,129.2,38.6984]
[1725238431644,6.2406,129.31,129.25,7.7369]
[1725238431645,27.7339,129.3,129.25,7.7369]
[1725238432237,27.7339,129.3,129.25,27.078]
[1725238432546,7.7339,129.3,129.25,27.078]
[1725238433045,7.7358,129.27,129.21,19.3479]
[1725238433432,7.7357,129.27,129.22,7.7386]
[1725238433638,7.7363,129.26,129.21,27.0872]
[1725238433835,7.7357,129.27,129.22,7.7386]
[1725238434542,7.7371,129.25,129.21,19.3479]
[1725238434746,7.7371,129.25,129.22,1.28033416]
[1725238436144,7.7371,129.25,129.21,19.3479]
[1725238436329,7.7364,129.26,129.22,1.54748474]
[1725238436536,7.7364,129.26,129.22,9.28608474]
[1725238436741,7.7358,129.27,129.22,9.28608474]
[1725238437733,7.7358,129.27,129.22,7.7386]
[1725238437931,1.93431077,129.29,129.23,19.3446]
[1725238438245,21.7056,129.31,129.2,38.6994]
[1725238438246,13.9742,129.31,129.25,19.3412]
[1725238438450,7.7332,129.32,129.27,7.7352]
[1725238439349,7.7332,129.32,129.28,7.7351]
[1725238439644,1.9338527,129.34,129.26,7.7357]
[1725238439952,7.7344,129.3,129.26,1.54681112]
[1725238440123,7.734,129.3,129.25,27.078]
[1725238440321,45.3178,129.35,129.27,19.3386]
[1725238440322,9.66617227,129.33,129.27,19.3386]
[1725238440527,1.93325348,129.34,129.27,19.3386]
[1725238440835,7.7332,129.32,129.27,27.0742]
[1725238441223,7.7322,129.33,129.28,9.28143292]
[1725238441531,20.0,129.32,129.28,7.7349]
[1725238441730,27.7328,129.32,129.28,7.7349]
[1725238442137,7.7343,129.3,129.24,19.3437]
[1725238442342,7.7343,129.3,129.26,7.7362]
[1725238442642,7.7347,129.29,129.25,7.7369]
[1725238442842,20.0,129.32,129.21,19.3476]
[1725238442843,1.93371101,129.28,129.21,19.3476]
[1725238443026,39.3327,129.32,129.21,27.0865]
[1725238443027,7.7368,129.26,129.21,27.0865]
[1725238443230,7.7365,129.26,129.22,1.54724612]
[1725238444452,7.7358,129.27,129.22,9.28584612]
[1725238444746,7.7346,129.29,129.23,19.3447]
[1725238445043,7.7346,129.29,129.24,52.7374]
[1725238445649,7.7353,129.28,129.24,52.7374]
[1725238445874,7.7364,129.26,129.2,58.0483]
[1725238446234,7.7369,129.25,129.21,1.5473381]
[1725238446536,7.7369,129.25,129.2,58.0483]
[1725238447327,7.7362,129.27,129.22,7.7387]
[1725238447528,7.7362,129.27,129.23,1.54721261]
[1725238447742,7.7362,129.27,129.22,7.7387]
[1725238448225,7.7362,129.27,129.23,1.54721536]
[1725238448430,7.7365,129.26,129.22,7.7387]
[1725238450157,7.7371,129.25,129.23,1.54729293]
[1725238450470,7.7371,129.25,129.21,7.7392]
[1725238450762,7.7371,129.25,129.22,1.54749574]
[1725238451769,6.1595,129.28,129.22,1.54749574]
[1725238452077,7.7339,129.3,129.22,1.54749574]
[1725238452359,7.7339,129.3,129.21,79.71574494]
[1725238452360,7.7338,129.31,129.24,19.3433]
[1725238452562,7.7338,129.31,129.25,0.12549]
[1725238452764,7.7338,129.31,129.25,45.0]
[1725238452934,7.7339,129.3,129.25,45.0]
[1725238453139,7.7339,129.3,129.24,19.3433]
[1725238453140,7.7334,129.31,129.26,52.7363]
[1725238453940,1.93352031,129.33,129.25,7.7367]
[1725238453941,7.7341,129.3,129.25,7.7367]
[1725238454134,7.7341,129.3,129.26,7.7363]
[1725238454340,6.4379,129.28,129.15,315.6457]
[1725238454555,17.64842751,129.27,129.15,22.1312]
[1725238454764,64.46749,129.26,129.16,19.355]
[1725238454942,1.93498613,129.25,129.16,19.355]
[1725238455138,0.12549,129.24,129.16,19.355]
[1725238455633,7.7404,129.2,129.15,7.7426]
[1725238455958,16.098,129.31,129.16,1.5479938]
[1725238456142,1.933948,129.3,129.24,7.7375]
[1725238456336,7.7346,129.29,129.23,19.3441]
[1725238456953,7.7346,129.29,129.24,45.0]
[1725238457647,7.7351,129.28,129.23,27.0821]
[1725238457964,7.7351,129.28,129.23,19.3441]
[1725238460145,7.7351,129.28,129.23,27.082]
[1725238460347,14.3891,129.31,129.25,7.7368]
[1725238460551,1.93383407,129.32,129.26,7.7362]
[1725238460552,9.66653407,129.32,129.26,7.7362]
[1725238460749,20.0,129.31,129.26,7.7362]
[1725238460942,27.7333,129.31,129.26,7.7362]
[1725238461141,7.7333,129.31,129.26,7.7362]
[1725238462153,1.93356422,129.34,129.27,65.885151]
[1725238462359,6.4794,129.35,129.29,7.7344]
[1725238462664,7.731,129.35,129.3,9.28014702]
[1725238463250,9.664635,129.34,129.28,7.7345]
[1725238464039,9.664635,129.34,129.29,7.7345]
[1725238464242,7.7321,129.33,129.29,7.7345]
[1725238464769,1.9333288,129.37,129.3,7.7338]
[1725238464964,7.7317,129.34,129.29,27.0695]
[1725238465159,7.7314,129.35,129.3,7.7336]
[1725238465367,21.9333288,129.37,129.29,19.3355]
[1725238465368,20.0,129.34,129.32,7.7325]
[1725238465561,20.0,129.34,129.31,7.7332]
[1725238465745,20.0,129.34,129.29,19.3355]
[1725238465951,1.9333288,129.37,129.29,27.0697]
[1725238465952,21.9333288,129.37,129.29,27.0697]
[1725238466162,7.7321,129.33,129.29,19.3355]
[1725238466381,7.7316,129.34,129.29,27.0694]
[1725238466663,7.7316,129.34,129.26,16.565]
[1725238466664,22.05879167,129.33,129.26,7.7363]
[1725238466866,1.93345759,129.32,129.27,7.7357]
[1725238467069,9.66635759,129.32,129.27,7.7357]
[1725238467368,1.93345722,129.35,129.24,41.51909181]
[1725238467546,7.7316,129.34,129.3,19.3335]
[1725238467745,20.0,129.37,129.3,19.3335]
[1725238468046,27.7302,129.37,129.32,7.7326]
[1725238468353,20.0,129.37,129.33,7.7321]
[1725238468560,7.7305,129.36,129.31,7.7329]
[1725238469744,27.7298,129.37,129.32,7.7326]
[1725238470059,27.7298,129.37,129.33,7.7319]
[1725238470368,27.7298,129.37,129.3,19.3335]
[1725238470369,27.7298,129.37,129.32,7.7326]
[1725238471368,1.93260145,129.36,129.3,19.3335]
[1725238471571,9.66340145,129.36,129.31,7.7329]
[1725238471745,7.7308,129.36,129.32,7.7326]
[1725238472266,9.66395835,129.35,129.31,7.7333]
[1725238472659,9.66395835,129.35,129.3,27.0672]
[1725238473061,7.731,129.35,129.31,7.7331]
[1725238473373,27.7302,129.37,129.32,7.7325]
[1725238473556,27.7302,129.37,129.33,1.54613559]
[1725238473557,20.0,129.37,129.33,1.54613559]
[1725238473975,7.7287,129.39,129.34,7.7315]
[1725238475052,16.15472924,129.41,129.34,19.328]
[1725238475254,14.2224,129.41,129.36,7.7303]
[1725238475562,9.66016404,129.4,129.36,7.7303]
[1725238475762,14.2225,129.41,129.36,7.7303]
[1725238475968,1.93189359,129.43,129.37,1.54551487]
[1725238476153,7.7263,129.43,129.38,1.54533361]
[1725238476352,7.7263,129.43,129.38,1.54533367]
[1725238476572,9.65787084,129.43,129.38,7.729]
[1725238476768,9.65776789,129.44,129.39,7.7285]
[1725238476971,7.7263,129.43,129.38,27.051]
[1725238477347,7.7263,129.43,129.39,7.7284]
[1725238477655,9.65753189,129.44,129.4,1.54535483]
[1725238477850,20.0,129.43,129.39,7.7284]
[1725238478068,20.0,129.43,129.4,1.54533293]
[1725238478255,20.0,129.43,129.39,7.7284]
[1725238478465,27.7267,129.43,129.38,27.051]
[1725238478765,20.0,129.43,129.39,1.54551145]
[1725238478954,21.93188931,129.44,129.39,1.54551145]
[1725238479360,29.65748931,129.44,129.39,9.27361145]
[1725238479771,27.7256,129.44,129.4,7.7279]
[1725238479972,20.0,129.44,129.38,27.0511]
[1725238480176,7.7263,129.43,129.38,27.0511]
[1725238480672,9.65791061,129.43,129.38,27.0511]
[1725238480851,29.65729615,129.44,129.4,7.7274]
[1725238481053,27.7256,129.44,129.4,7.7274]
[1725238481261,20.0,129.44,129.4,7.7274]
[1725238481666,7.7262,129.43,129.38,27.0508]
[1725238482454,20.0,129.44,129.38,27.0508]
[1725238482656,7.7272,129.42,129.37,7.7296]
[1725238482870,7.7273,129.41,129.37,7.7296]
[1725238483266,7.7273,129.41,129.35,19.3267]
[1725238483267,9.66003746,129.4,129.35,19.3267]
[1725238483451,1.93193746,129.4,129.34,7.7314]
[1725238483652,20.0,129.42,129.32,19.3314]
[1725238483860,47.05793615,129.41,129.32,19.3314]
[1725238484053,7.7292,129.38,129.33,1.54606455]
[1725238484267,9.66108133,129.39,129.34,7.7315]
[1725238484472,1.93243399,129.38,129.34,7.7315]
[1725238484777,9.66163399,129.38,129.33,7.732]
[1725238484959,7.7287,129.39,129.34,9.27748493]
[1725238485154,7.7287,129.39,129.34,7.7314]
[1725238486365,9.66169327,129.38,129.33,7.732]
[1725238486763,9.66169327,129.38,129.34,7.7315]
[1725238487060,7.7286,129.39,129.35,9.27689089]
[1725238487456,7.7281,129.4,129.35,9.27689089]
[1725238487658,20.0,129.39,129.35,9.27689089]
[1725238487974,29.660853,129.39,129.35,9.27689089]
[1725238488167,29.660853,129.39,129.34,7.7314]
[1725238488573,1.93239421,129.41,129.35,1.54591537]
[1725238488751,7.7269,129.42,129.37,19.3243]
[1725238488959,7.7261,129.43,129.39,7.7285]
[1725238489465,7.726,129.44,129.39,7.7285]
[1725238490465,9.65662833,129.45,129.4,1.54524604]
[1725238490774,7.725,129.45,129.4,1.54524604]
[1725238491365,7.725,129.45,129.41,7.7273]
[1725238491577,7.725,129.45,129.42,1.54516175]
[1725238491776,7.725,129.45,129.41,1.54516325]
[1725238493278,7.725,129.45,129.4,7.7278]
[1725238493581,7.725,129.45,129.41,9.27240818]
[1725238493955,7.725,129.45,129.39,19.3204]
[1725238493956,7.7245,129.46,129.42,7.7266]
[1725238494166,20.0,129.45,129.42,7.7266]
[1725238494668,8.52378384,129.49,129.43,45.0]
[1725238494860,6.5926,129.49,129.45,7.7248]
[1725238495083,7.7219,129.51,129.43,64.3147]
[1725238495084,7.7219,129.51,129.46,7.7243]
[1725238495488,9.65251802,129.51,129.47,1.54449441]
[1725238495994,7.7221,129.5,129.45,7.7248]
[1725238496185,1.9306887,129.53,129.47,19.3088]
[1725238496386,9.65065394,129.53,129.48,1.54420421]
[1725238496683,7.721,129.52,129.47,19.3088]
[1725238496864,9.65210851,129.51,129.47,27.0325]
[1725238497065,7.7216,129.51,129.47,27.0325]
[1725238497389,7.7216,129.51,129.47,19.3088]
[1725238497567,9.65262318,129.5,129.46,7.7243]
[1725238497767,7.7221,129.5,129.45,7.7248]
[1725238498174,1.93076826,129.49,129.45,7.7248]
[1725238498395,7.7216,129.51,129.44,34.8279]
[1725238498566,7.7216,129.51,129.46,7.7243]
[1725238498968,1.93057678,129.5,129.46,7.7243]
[1725238499179,7.7216,129.51,129.46,7.7243]
[1725238499383,1.93055758,129.5,129.46,7.7243]
[1725238499580,1.93055758,129.5,129.44,19.3132]
[1725238499779,1.93055758,129.5,129.41,6.0176]
[1725238499780,7.7233,129.48,129.43,7.7261]
[1725238500164,1.93105107,129.47,129.43,7.7261]
[1725238500764,9.65440867,129.48,129.44,1.54488694]
[1725238500974,14.2282,129.49,129.43,19.3146]
[1725238501279,9.65200782,129.52,129.47,7.7237]
[1725238501489,9.65200782,129.52,129.46,7.7242]
[1725238501490,9.65171438,129.51,129.46,7.7242]
[1725238501875,7.722,129.5,129.46,7.7242]
[1725238502073,6.5056,129.53,129.42,19.316]
[1725238502074,1.9306505,129.49,129.42,19.316]
[1725238502275,7.7244,129.46,129.42,27.0426]
[1725238502479,7.7237,129.48,129.43,7.726]
[1725238502694,21.23385551,129.52,129.43,7.726]
[1725238502989,65.12549,129.51,129.43,7.726]
[1725238503281,7.7233,129.48,129.43,7.726]
[1725238503488,1.93121093,129.5,129.4,54.5482]
[1725238503673,6.5056,129.53,129.49,7.7225]
[1725238503868,6.5056,129.53,129.5,1.54352391]
[1725238504068,6.5056,129.53,129.48,19.3072]
[1725238504387,6.5056,129.53,129.49,1.54419127]
[1725238504688,6.5056,129.53,129.45,6.2912]
[1725238504689,1.93009113,129.53,129.45,6.2912]
[1725238504874,1.93035009,129.55,129.46,45.0]
[1725238505066,7.7207,129.53,129.47,27.0326]
[1725238505267,1.93039359,129.53,129.45,7.7244]
[1725238505492,7.722,129.5,129.45,7.7244]
[1725238505697,7.7214,129.51,129.46,7.7242]
[1725238506065,9.65286357,129.5,129.45,7.7246]
[1725238506392,25.5905,129.56,129.41,19.3179]
[1725238506393,2.05616828,129.49,129.41,19.3179]
[1725238506565,7.7248,129.46,129.41,27.0447]
[1725238506771,7.7238,129.47,129.42,7.7267]
[1725238506983,7.7247,129.46,129.41,27.0451]
[1725238507181,9.65583976,129.46,129.41,27.0451]
[1725238507386,7.7259,129.44,129.39,7.7283]
[1725238507575,1.93159672,129.43,129.37,35.7219]
[1725238507774,1.9317531,129.47,129.37,35.7219]
[1725238508082,7.7252,129.45,129.39,7.7281]
[1725238508465,1.93156125,129.44,129.37,19.3233]
[1725238509573,2.05737824,129.46,129.37,19.3233]
[1725238509780,19.316,129.43,129.3,6.559]
[1725238510087,22.0579349,129.42,129.31,19.3319]
[1725238510285,7.7298,129.37,129.32,7.7326]
[1725238511175,7.729,129.39,129.33,7.732]
[1725238511596,1.93251323,129.38,129.33,7.732]
[1725238511782,7.7292,129.38,129.34,1.54600803]
[1725238512278,1.93251004,129.41,129.36,7.7301]
[1725238512279,9.65991004,129.41,129.36,7.7301]
[1725238512480,20.0,129.4,129.36,7.7301]
[1725238512689,7.7292,129.38,129.33,19.3289]
[1725238512882,9.66068369,129.39,129.33,27.0605]
[1725238513092,7.7295,129.38,129.33,27.0605]
[1725238513899,7.7295,129.38,129.33,19.3289]
[1725238514395,7.7303,129.36,129.31,7.7332]
[1725238515300,1.93272723,129.35,129.3,19.3345]
[1725238515497,7.7316,129.34,129.3,19.3345]
[1725238515675,7.7316,129.34,129.27,6.2647]
[1725238515676,1.93302415,129.37,129.27,19.3389]
[1725238515889,1.93302415,129.37,129.3,19.3338]
[1725238516093,29.66332415,129.37,129.31,7.7332]
[1725238516294,29.66332415,129.37,129.32,7.7322]
[1725238516494,7.7308,129.36,129.31,7.7333]
[1725238516700,7.7308,129.36,129.3,19.3338]
[1725238516701,1.93281752,129.35,129.3,19.3338]
[1725238516906,7.731,129.35,129.31,1.54637406]
[1725238517081,1.93296758,129.36,129.31,1.54637406]
[1725238517391,20.0,129.37,129.3,19.3338]
[1725238517587,7.7305,129.36,129.31,52.7332]
[1725238517987,27.7298,129.37,129.32,7.7327]
[1725238518293,24.09657919,129.41,129.37,7.7296]
[1725238518499,24.09657919,129.41,129.36,19.325]
[1725238518799,22.1639,129.41,129.36,27.055]
[1725238518990,1.93211727,129.4,129.36,27.055]
[1725238519385,29.8917,129.41,129.36,27.055]
[1725238519691,14.2557,129.41,129.36,27.055]
[1725238520090,9.66011611,129.4,129.36,19.325]
[1725238523203,7.7287,129.39,129.34,7.7315]
[1725238523501,1.93251169,129.39,129.35,7.7309]
[1725238523681,9.66061169,129.4,129.35,7.7309]
[1725238524607,14.2554,129.41,129.36,7.7302]
[1725238525090,1.93207922,129.4,129.36,7.7302]
[1725238525294,14.2554,129.41,129.36,7.7302]
[1725238525704,9.66008382,129.4,129.36,7.7302]
[1725238526208,9.66008382,129.4,129.35,19.3267]
[1725238526209,1.93208382,129.4,129.35,19.3267]
[1725238527090,6.5279,129.41,129.36,7.7302]
[1725238527289,1.93204328,129.4,129.36,7.7302]
[1725238527597,9.65994328,129.4,129.36,7.7302]
[1725238528000,1.93223257,129.43,129.33,15.9873]
[1725238528199,22.7312,129.44,129.4,7.7275]
[1725238528200,6.1932,129.44,129.4,7.7275]
[1725238528441,1.93155993,129.45,129.4,7.7275]
[1725238528588,29.0203,129.47,129.42,7.7267]
[1725238529093,13.917,129.47,129.42,7.7267]
[1725238529293,9.65565892,129.46,129.41,27.0446]
[1725238529490,9.65565892,129.46,129.38,25.9486]
[1725238529491,1.93125892,129.46,129.38,25.9486]
[1725238529698,1.93125892,129.46,129.38,19.3222]
[1725238530008,7.726,129.44,129.39,7.7284]
[1725238530207,1.93173376,129.43,129.39,7.7284]
[1725238530587,1.93173376,129.43,129.38,27.0512]
[1725238530588,9.65793376,129.43,129.38,27.0512]
[1725238531410,9.65793376,129.43,129.35,38.6522]
[1725238531411,7.7282,129.4,129.35,27.0578]
[1725238531591,7.7282,129.4,129.35,19.327]
[1725238531795,7.7282,129.4,129.35,27.0578]
[1725238532113,7.7274,129.41,129.36,7.7303]
[1725238532823,1.93173376,129.43,129.38,19.3225]
[1725238533018,7.7273,129.42,129.37,7.7296]
[1725238533425,1.93197141,129.41,129.35,19.3267]
[1725238533722,7.7284,129.4,129.35,27.0575]
[1725238534027,7.7292,129.38,129.32,19.3312]
[1725238534322,7.59343113,129.38,129.34,7.7314]
[1725238534623,14.0247,129.4,129.35,7.7309]
[1725238534921,7.7285,129.4,129.35,7.7309]
[1725238535502,9.6608515,129.39,129.34,27.0595]
[1725238536398,7.7295,129.38,129.34,19.328]
[1725238537317,7.7299,129.37,129.32,7.7326]
[1725238537622,7.7304,129.36,129.32,7.7326]
[1725238537812,1.93285369,129.35,129.31,19.3329]
[1725238538127,7.7315,129.34,129.29,7.7345]
[1725238539203,1.93309989,129.33,129.29,7.7345]
[1725238539405,7.7315,129.34,129.29,7.7345]
[1725238539605,7.7322,129.33,129.28,19.3373]
[1725238539822,7.7316,129.34,129.29,9.2809103]
[1725238540128,7.7316,129.34,129.3,7.7338]
[1725238541220,1.93303975,129.35,129.29,1.54643185]
[1725238541899,7.7316,129.34,129.29,1.54643185]
[1725238542103,9.66433975,129.35,129.3,7.7338]
[1725238542303,7.7318,129.34,129.3,7.7338]
[1725238543446,7.7318,129.34,129.29,9.28095131]
[1725238543929,7.7318,129.34,129.3,7.7337]
[1725238545933,7.731,129.35,129.3,7.7337]
[1725238546122,9.66409976,129.35,129.3,7.7337]
[1725238547225,7.7322,129.33,129.28,19.3373]
[1725238547434,7.7317,129.34,129.29,7.7341]
[1725238548442,7.7309,129.35,129.31,7.7333]
[1725238548735,9.66383721,129.35,129.31,7.7333]
[1725238549216,7.7316,129.34,129.29,7.734]
[1725238550410,7.7316,129.34,129.3,1.5465324]
[1725238550905,1.93293721,129.35,129.3,1.5465324]
[1725238550906,7.7305,129.36,129.3,20.88053576]
[1725238551111,7.7305,129.36,129.32,7.7323]
[1725238551325,7.7305,129.36,129.32,9.27851747]
[1725238551811,9.66368798,129.35,129.32,1.54615038]
[1725238552116,9.66368798,129.35,129.31,7.7331]
[1725238552432,7.731,129.35,129.31,9.27945892]
[1725238552639,7.731,129.35,129.31,7.7331]
[1725238552826,7.731,129.35,129.31,9.27945369]
[1725238553028,7.7305,129.36,129.32,7.7327]
[1725238553912,6.3119,129.39,129.34,7.7313]
[1725238554115,7.7283,129.4,129.35,7.7307]
[1725238554510,9.66097106,129.39,129.35,7.7307]
[1725238555337,9.66097106,129.39,129.28,34.5160358]
[1725238555338,7.7298,129.37,129.31,19.3328]
[1725238555636,9.66317084,129.36,129.32,7.7325]
[1725238555828,7.7304,129.36,129.32,7.7325]
[1725238556033,9.66417097,129.35,129.31,19.3328]
[1725238556332,1.93295979,129.38,129.33,19.3297]
[1725238556524,9.66205979,129.39,129.34,9.27691491]
[1725238556843,7.7291,129.39,129.34,7.731]
[1725238557218,7.7292,129.38,129.34,7.731]
[1725238557618,1.9323954,129.37,129.3,28.61371632]
[1725238557923,1.9323954,129.37,129.31,7.7333]
[1725238558631,1.9323954,129.37,129.3,19.3342]
[1725238558632,7.7311,129.35,129.3,27.0679]
[1725238559341,1.9329677,129.34,129.26,6.2281]
[1725238559641,7.7335,129.31,129.26,7.7363]
[1725238560019,7.7346,129.29,129.25,16.5533]
[1725238560317,19.3312,129.33,129.22,261.0449]
[1725238560630,19.3312,129.33,129.22,262.5382]
[1725238560631,7.7351,129.28,129.22,262.5382]
[1725238560834,1.93404682,129.27,129.22,7.7382]
[1725238561339,9.67044343,129.26,129.21,27.0872]
[1725238562543,7.7372,129.25,129.2,395.6399]
[1725238562732,7.7363,129.26,129.2,395.6399]
[1725238562927,9.67065773,129.26,129.2,395.6399]
[1725238563130,9.67065773,129.26,129.2,7.7399]
[1725238563326,7.7372,129.25,129.19,7.7405]
[1725238563522,7.7372,129.25,129.16,6.2545]
[1725238563523,7.7388,129.22,129.16,7.7421]
[1725238563725,1.93518178,129.21,129.15,27.0999]
[1725238564023,9.67448178,129.21,129.15,27.0999]
[1725238564237,9.67448178,129.21,129.15,19.357]
[1725238564238,7.74,129.2,129.15,19.357]
[1725238564526,1.93518178,129.21,129.12,6.2545]
[1725238564527,1.93528739,129.19,129.12,7.7446]
[1725238564944,0.12549,129.18,129.12,7.7446]
[1725238565248,21.93566754,129.2,129.11,19.362]
[1725238565738,29.67566754,129.2,129.14,7.743]
[1725238565969,18.42167407,129.24,129.1,38.7285]
[1725238566248,42.65779292,129.33,129.16,16.1445]